lending/lending_fUSD_20251016
["ID","MTS","AMOUNT","RATE_DAILY","PERIOD"]
[391500029,1760622675631,-988.33,0.00019726,2]
[391500030,1760622675640,-509.89,0.00019726,2]
[391500031,1760622675649,-1671.31,0.00019726,2]
[391500032,1760622675660,-7550.96,0.00019726,2]
[391500033,1760622675669,-1313.38,0.00019726,2]
[391500034,1760622675678,-1572.1,0.00019726,2]
[391500035,1760622675690,-4245.72,0.00019726,2]
[391500036,1760622675699,-3176.05,0.00019726,2]
[391500037,1760622675709,-500.0,0.00019726,2]
[391500038,1760622675718,-1797.15,0.00019726,2]
[391500039,1760622675727,-891.42,0.00019726,2]
[391500040,1760622675736,-1043.57,0.00019726,2]
[391500041,1760622675746,-944.13,0.00019726,2]
[391500042,1760622675756,-1891.66,0.00019726,2]
[391500043,1760622675766,-500.0,0.00019726,2]
[391500044,1760622675775,-717.71,0.00019726,2]
[391500045,1760622675784,-500.0,0.00019726,2]
[391500046,1760622675794,-908.64,0.00019726,2]
[391500047,1760622675803,-3700.12,0.00019726,2]
[391500048,1760622675812,-1651.53,0.00019726,2]
[391500049,1760622675822,-347.49,0.00019726,2]
[391500050,1760622675831,-840.05,0.00019726,2]
[391500051,1760622675841,-961.02,0.00019726,2]
[391500052,1760622675851,-500.0,0.00019726,2]
[391500053,1760622675860,-678.06,0.00019726,2]
[391500054,1760622675869,-1287.35,0.00019726,2]
[391500055,1760622675879,-915.6,0.00019726,2]
[391500056,1760622675888,-2181.82,0.00019726,2]
[391500057,1760622675897,-3115.99,0.00019726,2]
[391500058,1760622675907,-1268.96,0.00019726,2]
[391500059,1760622675916,-1985.4,0.00019726,2]
[391500060,1760622675926,-553.44,0.00019726,2]
[391500061,1760622675936,-500.0,0.00019726,2]
[391500062,1760622675951,-3529.62,0.00019726,2]
[391500063,1760622675961,-1679.51,0.00019726,2]
[391500064,1760622675970,-1529.81,0.00019726,2]
[391500065,1760622675979,-500.0,0.00019726,2]
[391500066,1760622675988,-2011.48,0.00019726,2]
[391500067,1760622675998,-500.0,0.00019726,2]
[391500068,1760622676007,-500.0,0.00019726,2]
[391500069,1760622676016,-4235.51,0.00019726,2]
[391500070,1760622676027,-500.0,0.00019726,2]
[391500071,1760622676037,-500.0,0.00019726,2]
[391500072,1760622676046,-500.0,0.00019726,2]
[391500073,1760622676055,-3031.18,0.00019726,2]
[391500074,1760622676063,-1091.39,0.00019726,2]
[391500075,1760622676070,-7593.53,0.00019726,2]
[391500076,1760622676077,-343.43295529,0.00019726,2]
[391500077,1760622676083,-3827.42,0.00019726,2]
[391500078,1760622676090,-4268.11,0.00019726,2]
[391500079,1760622676096,-3025.1,0.00019726,2]
[391500080,1760622676102,-500.0,0.00019726,2]
[391500081,1760622676110,-500.0,0.00019726,2]
[391500082,1760622676116,-500.0,0.00019726,2]
[391500083,1760622676123,-705.48,0.00019726,2]
[391500084,1760622676129,-2854.32,0.00019726,2]
[391500085,1760622676136,-3313.49,0.00019726,2]
[391500086,1760622676144,-771.59,0.00019726,2]
[391500087,1760622676151,-500.0,0.00019726,2]
[391500088,1760622676159,-10656.45,0.00019726,2]
[391500089,1760622676166,-500.0,0.00019726,2]
[391500090,1760622676176,-3665.44,0.00019726,2]
[391500091,1760622676185,-3249.2,0.00019726,2]
[391500092,1760622676206,-941.31,0.00019726,2]
[391500093,1760622676226,-2336.52,0.00019726,2]
[391500094,1760622676238,-1831.3,0.00019726,2]
[391500095,1760622676246,-500.0,0.00019726,2]
[391500096,1760622676254,-1046.64,0.00019726,2]
[391500097,1760622676262,-649.92,0.00019726,2]
[391500098,1760622676271,-2648.13,0.00019726,2]
[391500099,1760622676280,-1643.87,0.00019726,2]
[391500100,1760622676289,-500.0,0.00019726,2]
[391500101,1760622676296,-500.0,0.00019726,2]
[391500102,1760622676303,-500.0,0.00019726,2]
[391500103,1760622676310,-612.21,0.00019726,2]
[391500104,1760622676317,-598.17,0.00019726,2]
[391500105,1760622676325,-1984.56,0.00019726,2]
[391500106,1760622676427,-3685.97,0.00019726,2]
[391500107,1760622676434,-500.0,0.00019726,2]
[391500108,1760622676444,-2304.13,0.00019726,2]
[391500109,1760622676452,-2058.45,0.00019726,2]
[391500110,1760622676459,-1127.11,0.00019726,2]
[391500111,1760622676465,-1684.45,0.00019726,2]
[391500112,1760622676472,-657.45,0.00019726,2]
[391500113,1760622676480,-1987.85,0.00019726,2]
[391500114,1760622676487,-1820.75,0.00019726,2]
[391500115,1760622676493,-3110.25,0.00019726,2]
[391500116,1760622676500,-500.0,0.00019726,2]
[391500117,1760622676507,-739.42,0.00019726,2]
[391500118,1760622676514,-589.13,0.00019726,2]
[391500119,1760622676521,-4203.67,0.00019726,2]
[391500120,1760622676528,-3869.35,0.00019726,2]
[391500121,1760622676534,-500.0,0.00019726,2]
[391500122,1760622676541,-587.14,0.00019726,2]
[391500123,1760622676548,-707.89,0.00019726,2]
[391500124,1760622676556,-9032.13,0.00019726,2]
[391500125,1760622676563,-3091.12,0.00019726,2]
[391500126,1760622676569,-2654.98,0.00019726,2]
[391500127,1760622676575,-500.0,0.00019726,2]
[391500128,1760622676583,-500.0,0.00019726,2]
[391500129,1760622676588,-510.51,0.00019726,2]
[391500130,1760622676595,-500.0,0.00019726,2]
[391500131,1760622676601,-3893.45,0.00019726,2]
[391500132,1760622676608,-3273.51,0.00019726,2]
[391500133,1760622676615,-599.13,0.00019726,2]
[391500134,1760622676622,-571.81,0.00019726,2]
[391500135,1760622676630,-500.0,0.00019726,2]
[391500136,1760622676637,-500.0,0.00019726,2]
[391500137,1760622676643,-500.0,0.00019726,2]
[391500138,1760622676649,-1000.0,0.00019726,2]
[391500139,1760622676657,-1162.82,0.00019726,2]
[391500140,1760622676663,-2804.59,0.00019726,2]
[391500141,1760622676670,-2348.4,0.00019726,2]
[391500142,1760622676676,-2753.32,0.00019726,2]
[391500143,1760622676684,-638.21,0.00019726,2]
[391500144,1760622676694,-4187.13,0.00019726,2]
[391500145,1760622676700,-1937.79,0.00019726,2]
[391500146,1760622676708,-1106.18,0.00019726,2]
[391500147,1760622676715,-5535.6,0.00019726,2]
[391500148,1760622676722,-835.8,0.00019726,2]
[391500149,1760622676733,-1484.48,0.00019726,2]
[391500150,1760622676740,-596.47,0.00019726,2]
[391500151,1760622676747,-589.37,0.00019726,2]
[391500152,1760622676755,-16361.62,0.00019726,2]
[391500153,1760622676764,-500.0,0.00019726,2]
[391500154,1760622676771,-500.0,0.00019726,2]
[391500155,1760622676780,-1013.56,0.00019726,2]
[391500156,1760622676787,-2813.75,0.00019726,2]
[391500157,1760622676795,-779.28,0.00019726,2]
[391500158,1760622676801,-6158.35,0.00019726,2]
[391500159,1760622676808,-1260.02,0.00019726,2]
[391500160,1760622676814,-3360.51,0.00019726,2]
[391500161,1760622676821,-500.0,0.00019726,2]
[391500162,1760622676830,-500.0,0.00019726,2]
[391500163,1760622676838,-649.71,0.00019726,2]
[391500164,1760622676845,-843.5,0.00019726,2]
[391500165,1760622676851,-500.0,0.00019726,2]
[391500166,1760622676857,-3355.22,0.00019726,2]
[391500167,1760622676864,-635.54,0.00019726,2]
[391500168,1760622676871,-500.0,0.00019726,2]
[391500169,1760622676877,-3318.15,0.00019726,2]
[391500170,1760622676885,-5526.39,0.00019726,2]
[391500171,1760622676892,-1054.7,0.00019726,2]
[391500172,1760622676899,-500.0,0.00019726,2]
[391500173,1760622676907,-748.85,0.00019726,2]
[391500174,1760622676916,-1497.32,0.00019726,2]
[391500175,1760622676926,-1945.16,0.00019726,2]
[391500176,1760622676935,-3269.2,0.00019726,2]
[391500177,1760622676949,-1130.94,0.00019726,2]
[391500178,1760622676960,-500.0,0.00019726,2]
[391500179,1760622676969,-10400.96,0.00019726,2]
[391500180,1760622676979,-2517.01,0.00019726,2]
[391500181,1760622676988,-240.40808399,0.00019726,2]
[391500182,1760622676998,-848.22,0.00019726,2]
[391500183,1760622677008,-1178.22,0.00019726,2]
[391500184,1760622677017,-11285.02,0.00019726,2]
[391500185,1760622677027,-1108.27,0.00019726,2]
[391500186,1760622677036,-500.0,0.00019726,2]
[391500187,1760622677046,-1745.61,0.00019726,2]
[391500188,1760622677055,-1744.29,0.00019726,2]
[391500189,1760622677065,-5165.76,0.00019726,2]
[391500190,1760622677074,-780.48,0.00019726,2]
[391500191,1760622677083,-4151.11,0.00019726,2]
[391500193,1760622677093,-500.0,0.00019726,2]
[391500194,1760622677102,-510.94,0.00019726,2]
[391500195,1760622677111,-613.98,0.00019726,2]
[391500196,1760622677120,-1294.56,0.00019726,2]
[391500197,1760622677130,-500.0,0.00019726,2]
[391500198,1760622677139,-1965.92,0.00019726,2]
[391500199,1760622677148,-1555.15,0.00019726,2]
[391500200,1760622677161,-616.3,0.00019726,2]
[391500201,1760622677170,-500.0,0.00019726,2]
[391500202,1760622677180,-500.0,0.00019726,2]
[391500203,1760622677189,-500.0,0.00019726,2]
[391500204,1760622677199,-255.36986188,0.00019726,2]
[391500205,1760622677209,-1949.36,0.00019726,2]
[391500206,1760622677219,-500.0,0.00019726,2]
[391500207,1760622677229,-1524.11,0.00019726,2]
[391500208,1760622677239,-567.17,0.00019726,2]
[391500209,1760622677249,-865.96,0.00019726,2]
[391500210,1760622677259,-500.0,0.00019726,2]
[391500211,1760622677268,-500.0,0.00019726,2]
[391500212,1760622677278,-500.0,0.00019726,2]
[391500213,1760622677288,-1057.77,0.00019726,2]
[391500214,1760622677297,-3001.81,0.00019726,2]
[391500215,1760622677307,-500.0,0.00019726,2]
[391500216,1760622677316,-500.0,0.00019726,2]
[391500217,1760622677326,-500.0,0.00019726,2]
[391500219,1760622677335,-224.81,0.00019726,2]
[391500220,1760622677345,-619.17,0.00019726,2]
[391500221,1760622677356,-500.0,0.00019726,2]
[391500222,1760622677366,-3418.29,0.00019726,2]
[391500223,1760622677375,-500.0,0.00019726,2]
[391500224,1760622677384,-1471.97,0.00019726,2]
[391500225,1760622677399,-797.1,0.00019726,2]
[391500226,1760622677408,-500.0,0.00019726,2]
[391500227,1760622677418,-1621.16,0.00019726,2]
[391500228,1760622677427,-2910.32,0.00019726,2]
[391500229,1760622677438,-4163.48,0.00019726,2]
[391500230,1760622677450,-1408.75,0.00019726,2]
[391500231,1760622677460,-1524.66,0.00019726,2]
[391500232,1760622677471,-500.0,0.00019726,2]
[391500233,1760622677481,-795.44,0.00019726,2]
[391500234,1760622677491,-500.0,0.00019726,2]
[391500235,1760622677500,-4733.11,0.00019726,2]
[391500236,1760622677510,-1197.95,0.00019726,2]
[391500237,1760622677519,-500.0,0.00019726,2]
[391500238,1760622677528,-695.47,0.00019726,2]
[391500239,1760622677538,-3135.59,0.00019726,2]
[391500240,1760622677547,-2305.83,0.00019726,2]
[391500241,1760622677556,-1916.59,0.00019726,2]
[391500242,1760622677566,-3295.78,0.00019726,2]
[391500243,1760622677576,-3517.07,0.00019726,2]
[391500244,1760622677585,-500.0,0.00019726,2]
[391500245,1760622677595,-656.02,0.00019726,2]
[391500246,1760622677604,-1069.58,0.00019726,2]
[391500247,1760622677613,-1511.34,0.00019726,2]
[391500248,1760622677623,-500.0,0.00019726,2]
[391500249,1760622677632,-7979.45,0.00019726,2]
[391500250,1760622677641,-2823.05,0.00019726,2]
[391500251,1760622677651,-774.4,0.00019726,2]
[391500252,1760622677660,-500.0,0.00019726,2]
[391500253,1760622677670,-1157.56,0.00019726,2]
[391500254,1760622677679,-5303.78,0.00019726,2]
[391500255,1760622677689,-4169.36,0.00019726,2]
[391500256,1760622677702,-500.0,0.00019726,2]
[391500257,1760622677712,-500.0,0.00019726,2]
[391500258,1760622677722,-500.0,0.00019726,2]
[391500259,1760622677731,-1200.01,0.00019726,2]
[391500260,1760622677740,-932.92,0.00019726,2]
[391500261,1760622677750,-789.4,0.00019726,2]
[391500262,1760622677769,-927.24,0.00019726,2]
[391500263,1760622677779,-9587.9,0.00019726,2]
[391500264,1760622677790,-500.0,0.00019726,2]
[391500265,1760622677800,-3287.32,0.00019726,2]
[391500266,1760622677809,-583.99,0.00019726,2]
[391500267,1760622677818,-770.52,0.00019726,2]
[391500268,1760622677828,-775.1,0.00019726,2]
[391500269,1760622677837,-2429.74,0.00019726,2]
[391500270,1760622677847,-1100.84,0.00019726,2]
[391500271,1760622677858,-1009.05,0.00019726,2]
[391500272,1760622677868,-2825.9,0.00019726,2]
[391500273,1760622677877,-3861.07,0.00019726,2]
[391500274,1760622677887,-1374.96,0.00019726,2]
[391500275,1760622677896,-500.0,0.00019726,2]
[391500276,1760622677906,-500.0,0.00019726,2]
[391500277,1760622677915,-500.0,0.00019726,2]
[391500278,1760622677925,-500.0,0.00019726,2]
[391500279,1760622677934,-5433.06,0.00019726,2]
[391500280,1760622677947,-500.0,0.00019726,2]
[391500281,1760622677957,-795.03,0.00019726,2]
[391500282,1760622677967,-2220.5,0.00019726,2]
[391500283,1760622677976,-310.46697836,0.00019726,2]
[391500284,1760622677986,-500.0,0.00019726,2]
[391500285,1760622677995,-500.0,0.00019726,2]
[391500286,1760622678006,-5439.71,0.00019726,2]
[391500287,1760622678015,-500.0,0.00019726,2]
[391500288,1760622678025,-1132.98,0.00019726,2]
[391500289,1760622678035,-4119.94,0.00019726,2]
[391500290,1760622678045,-500.0,0.00019726,2]
[391500291,1760622678054,-3883.43,0.00019726,2]
[391500292,1760622678066,-500.0,0.00019726,2]
[391500293,1760622678075,-611.83,0.00019726,2]
[391500294,1760622678084,-500.0,0.00019726,2]
[391500295,1760622678094,-2615.54,0.00019726,2]
[391500296,1760622678105,-500.0,0.00019726,2]
[391500297,1760622678114,-4895.72,0.00019726,2]
[391500298,1760622678123,-500.0,0.00019726,2]
[391500299,1760622678133,-500.0,0.00019726,2]
[391500300,1760622678143,-1241.84,0.00019726,2]
[391500301,1760622678153,-1581.61,0.00019726,2]
[391500302,1760622678163,-1071.39,0.00019726,2]
[391500303,1760622678172,-504.18792439,0.00019726,2]
[391500304,1760622678182,-500.0,0.00019726,2]
[391500305,1760622678196,-5637.11,0.00019726,2]
[391500306,1760622678206,-719.01,0.00019726,2]
[391500307,1760622678216,-500.0,0.00019726,2]
[391500308,1760622678226,-623.01,0.00019726,2]
[391500309,1760622678236,-3109.86,0.00019726,2]
[391500310,1760622678246,-513.43,0.00019726,2]
[391500311,1760622678256,-559.21,0.00019726,2]
[391500312,1760622678265,-327.83939732,0.00019726,2]
[391500313,1760622678275,-956.81,0.00019726,2]
[391500314,1760622678284,-500.0,0.00019726,2]
[391500315,1760622678294,-1535.75,0.00019726,2]
[391500316,1760622678304,-876.67,0.00019726,2]
[391500317,1760622678314,-500.0,0.00019726,2]
[391500318,1760622678324,-500.0,0.00019726,2]
[391500319,1760622678333,-1473.42,0.00019726,2]
[391500320,1760622678342,-2232.8,0.00019726,2]
[391500321,1760622678351,-500.0,0.00019726,2]
[391500322,1760622678361,-3111.26,0.00019726,2]
[391500323,1760622678371,-973.22,0.00019726,2]
[391500324,1760622678380,-500.0,0.00019726,2]
[391500325,1760622678394,-1091.31,0.00019726,2]
[391500326,1760622678403,-500.0,0.00019726,2]
[391500327,1760622678413,-500.0,0.00019726,2]
[391500328,1760622678423,-3364.74,0.00019726,2]
[391500329,1760622678432,-601.6,0.00019726,2]
[391500330,1760622678443,-1027.01,0.00019726,2]
[391500331,1760622678453,-500.0,0.00019726,2]
[391500332,1760622678463,-2432.92,0.00019726,2]
[391500333,1760622678473,-627.6,0.00019726,2]
[391500334,1760622678482,-500.0,0.00019726,2]
[391500335,1760622678491,-1924.06,0.00019726,2]
[391500336,1760622678500,-1573.7,0.00019726,2]
[391500337,1760622678510,-3104.13,0.00019726,2]
[391500338,1760622678519,-500.0,0.00019726,2]
[391500339,1760622678528,-500.0,0.00019726,2]
[391500340,1760622678537,-500.0,0.00019726,2]
[391500341,1760622678546,-740.95,0.00019726,2]
[391500342,1760622678556,-2791.86,0.00019726,2]
[391500343,1760622678565,-500.0,0.00019726,2]
[391500344,1760622678575,-312.0,0.00019735,2]
[391500345,1760622678584,-312.0,0.00019757,2]
[391500346,1760622678593,-5700.10484385,0.00019765,2]
[391500347,1760622678603,-312.0,0.00019769,2]
[391500348,1760622678614,-364.64876417,0.00019782,2]
[391500349,1760622678623,-312.0,0.0001979,2]
[391500350,1760622678632,-1179.43525772,0.00019809,2]
[391500351,1760622678642,-315.09762564,0.000199,2]
[391500352,1760622678651,-1179.43525772,0.000199,2]
[391500353,1760622678660,-312.0,0.00019925,2]
[391500354,1760622678669,-312.0,0.00019971,2]
[391500355,1760622678679,-198.81512196,0.0001999,2]
[391500356,1760622678688,-300.75563307,0.00019991,2]
[391500357,1760622678699,-26258.40454535,0.0002,2]
[391500358,1760622678709,-500.0,0.0002,2]
[391500359,1760622678719,-1036.79,0.0002,2]
[391500360,1760622678728,-500.0,0.0002,2]
[391500361,1760622678738,-672.89,0.0002,2]
[391500362,1760622678747,-500.0,0.0002,2]
[391500363,1760622678758,-1548.95,0.0002,2]
[391500364,1760622678767,-500.0,0.0002,2]
[391500365,1760622678777,-1374.33,0.0002,2]
[391500366,1760622678787,-500.0,0.0002,2]
[391500367,1760622678796,-1131.06,0.0002,2]
[391500368,1760622678805,-500.0,0.0002,2]
[391500369,1760622678815,-500.0,0.0002,2]
[391500370,1760622678824,-500.0,0.0002,2]
[391500371,1760622678833,-500.0,0.0002,2]
[391500372,1760622678843,-500.0,0.0002,2]
[391500373,1760622678852,-500.0,0.0002,2]
[391500374,1760622678862,-500.0,0.0002,2]
[391500375,1760622678871,-500.0,0.0002,2]
[391500376,1760622678881,-500.0,0.0002,2]
[391500377,1760622678891,-2302.32,0.0002,2]
[391500378,1760622678901,-500.0,0.0002,2]
[391500379,1760622678910,-500.0,0.0002,2]
[391500380,1760622678920,-1208.6,0.0002,2]
[391500381,1760622678930,-500.0,0.0002,2]
[391500382,1760622678942,-500.0,0.0002,2]
[391500383,1760622678951,-500.0,0.0002,2]
[391500384,1760622678961,-1783.2,0.0002,2]
[391500385,1760622678970,-500.0,0.0002,2]
[391500386,1760622678980,-500.0,0.0002,2]
[391500387,1760622678989,-500.0,0.0002,2]
[391500388,1760622678999,-500.0,0.0002,2]
[391500389,1760622679008,-500.0,0.0002,2]
[391500390,1760622679018,-1241.47,0.0002,2]
[391500391,1760622679028,-500.0,0.0002,2]
[391500392,1760622679039,-500.0,0.0002,2]
[391500393,1760622679050,-500.0,0.0002,2]
[391500394,1760622679060,-636.86381594,0.0002,2]
[391500395,1760622679071,-500.0,0.0002,2]
[391500396,1760622679082,-500.0,0.0002,2]
[391500397,1760622679091,-502.05,0.0002,2]
[391500398,1760622679101,-500.0,0.0002,2]
[391500399,1760622679110,-500.0,0.0002,2]
[391500400,1760622679119,-1031.41,0.0002,2]
[391500401,1760622679129,-500.0,0.0002,2]
[391500402,1760622679139,-500.0,0.0002,2]
[391500403,1760622679149,-318.05,0.0002,2]
[391500404,1760622679158,-1162.99,0.0002,2]
[391500405,1760622679168,-1162.99,0.0002,2]
[391500406,1760622679178,-500.0,0.0002,2]
[391500407,1760622679188,-500.0,0.0002,2]
[391500408,1760622679202,-288.8912041,0.0002,2]
[391500409,1760622679212,-637.91644371,0.0002,2]
[391500410,1760622679222,-500.0,0.0002,2]
[391500411,1760622679231,-737.5,0.0002,2]
[391500412,1760622679240,-1123.95,0.0002,2]
[391500413,1760622679249,-500.0,0.0002,2]
[391500414,1760622679259,-500.0,0.0002,2]
[391500415,1760622679268,-500.0,0.0002,2]
[391500416,1760622679277,-500.0,0.0002,2]
[391500417,1760622679287,-295.50030331,0.0002,2]
[391500418,1760622679296,-500.0,0.0002,2]
[391500419,1760622679306,-500.0,0.0002,2]
[391500420,1760622679315,-500.0,0.0002,2]
[391500421,1760622679324,-153.517125,0.0002,2]
[391500422,1760622679334,-500.0,0.0002,2]
[391500423,1760622679343,-500.0,0.0002,2]
[391500424,1760622679352,-500.0,0.0002,2]
[391500425,1760622679361,-500.0,0.0002,2]
[391500426,1760622679370,-500.0,0.0002,2]
[391500427,1760622679380,-500.0,0.0002,2]
[391500428,1760622679392,-177.419506,0.0002,2]
[391500429,1760622679402,-1214.15,0.0002,2]
[391500430,1760622679411,-500.0,0.0002,2]
[391500431,1760622679420,-10481.01701,0.0002,2]
[391500432,1760622679430,-500.0,0.0002,2]
[391500433,1760622679444,-292.151233,0.0002,2]
[391500434,1760622679453,-279.978265,0.0002,2]
[391500435,1760622679462,-500.0,0.0002,2]
[391500436,1760622679474,-1312.43,0.0002,2]
[391500437,1760622679483,-365.920474,0.0002,2]
[391500438,1760622679492,-6009.959883,0.0002,2]
[391500439,1760622679501,-227.748246,0.0002,2]
[391500440,1760622679511,-500.0,0.0002,2]
[391500441,1760622679520,-500.0,0.0002,2]
[391500442,1760622679530,-1220.84,0.0002,2]
[391500443,1760622679539,-500.0,0.0002,2]
[391500444,1760622679548,-500.0,0.0002,2]
[391500445,1760622679557,-508.2,0.0002,2]
[391500446,1760622679567,-995.09,0.0002,2]
[391500447,1760622679576,-500.0,0.0002,2]
[391500448,1760622679585,-1525.11,0.0002,2]
[391500449,1760622679594,-1525.11,0.0002,2]
[391500450,1760622679603,-1224.05,0.0002,2]
[391500451,1760622679612,-500.0,0.0002,2]
[391500452,1760622679622,-564.71,0.0002,2]
[391500453,1760622679631,-500.0,0.0002,2]
[391500454,1760622679640,-500.0,0.0002,2]
[391500455,1760622679649,-500.0,0.0002,2]
[391500456,1760622679658,-4767.573027,0.0002,2]
[391500457,1760622679668,-500.0,0.0002,2]
[391500458,1760622679681,-500.0,0.0002,2]
[391500459,1760622679695,-500.0,0.0002,2]
[391500460,1760622679704,-1014.27,0.0002,2]
[391500461,1760622679713,-779.37,0.0002,2]
[391500462,1760622679722,-500.0,0.0002,2]
[391500463,1760622679732,-500.0,0.0002,2]
[391500464,1760622679741,-500.0,0.0002,2]
[391500465,1760622679751,-500.0,0.0002,2]
[391500466,1760622679760,-500.0,0.0002,2]
[391500467,1760622679769,-500.0,0.0002,2]
[391500468,1760622679779,-685.3,0.0002,2]
[391500469,1760622679788,-500.0,0.0002,2]
[391500470,1760622679798,-896.07,0.0002,2]
[391500471,1760622679807,-500.0,0.0002,2]
[391500472,1760622679818,-1058.91,0.0002,2]
[391500473,1760622679827,-500.0,0.0002,2]
[391500474,1760622679838,-500.0,0.0002,2]
[391500475,1760622679847,-563.91,0.0002,2]
[391500476,1760622679858,-800.24,0.0002,2]
[391500477,1760622679868,-2222.82,0.0002,2]
[391500478,1760622679877,-500.0,0.0002,2]
[391500479,1760622679887,-500.0,0.0002,2]
[391500480,1760622679897,-500.0,0.0002,2]
[391500481,1760622679906,-970.75,0.0002,2]
[391500482,1760622679917,-500.0,0.0002,2]
[391500483,1760622679926,-501.00339841,0.0002,2]
[391500484,1760622679936,-500.0,0.0002,2]
[391500485,1760622679949,-500.0,0.0002,2]
[391500486,1760622679959,-500.0,0.0002,2]
[391500487,1760622679968,-500.0,0.0002,2]
[391500488,1760622679978,-500.0,0.0002,2]
[391500489,1760622679988,-740.89,0.0002,2]
[391500490,1760622679998,-976.49,0.0002,2]
[391500491,1760622680008,-500.0,0.0002,2]
[391500492,1760622680018,-1658.18,0.0002,2]
[391500493,1760622680028,-500.0,0.0002,2]
[391500494,1760622680037,-527.15218443,0.0002,2]
[391500495,1760622680047,-426.85,0.0002,2]
[391500496,1760622680056,-1031.59,0.0002,2]
[391500497,1760622680066,-1351.56,0.0002,2]
[391500498,1760622680075,-1569.02,0.0002,2]
[391500499,1760622680085,-649.48,0.0002,2]
[391500500,1760622680095,-2029.65,0.0002,2]
[391500501,1760622680104,-500.0,0.0002,2]
[391500502,1760622680114,-500.0,0.0002,2]
[391500503,1760622680124,-500.0,0.0002,2]
[391500504,1760622680134,-514.26849347,0.0002,2]
[391500505,1760622680144,-500.0,0.0002,2]
[391500506,1760622680153,-500.0,0.0002,2]
[391500507,1760622680163,-500.0,0.0002,2]
[391500508,1760622680173,-1882.54,0.0002,2]
[391500509,1760622680183,-500.0,0.0002,2]
[391500510,1760622680197,-500.0,0.0002,2]
[391500511,1760622680208,-500.0,0.0002,2]
[391500512,1760622680218,-500.0,0.0002,2]
[391500513,1760622680228,-500.0,0.0002,2]
[391500514,1760622680238,-516.71,0.0002,2]
[391500515,1760622680248,-500.0,0.0002,2]
[391500516,1760622680258,-2058.82,0.0002,2]
[391500517,1760622680269,-549.51,0.0002,2]
[391500518,1760622680279,-500.0,0.0002,2]
[391500519,1760622680289,-500.0,0.0002,2]
[391500520,1760622680300,-500.0,0.0002,2]
[391500521,1760622680310,-500.0,0.0002,2]
[391500522,1760622680319,-500.0,0.0002,2]
[391500523,1760622680330,-500.0,0.0002,2]
[391500524,1760622680339,-2318.56,0.0002,2]
[391500525,1760622680349,-500.0,0.0002,2]
[391500526,1760622680359,-609.41,0.0002,2]
[391500527,1760622680369,-731.65,0.0002,2]
[391500528,1760622680382,-500.0,0.0002,2]
[391500529,1760622680396,-500.0,0.0002,2]
[391500530,1760622680406,-795.28,0.0002,2]